2CCN - Level 2 Cost Centre Name,,9CCN - Level 9 Cost Centre Name,9CCC - Level 9 Cost Centre Code,9AN - Level 9 Account Name,9AC - Level 9 Account Code,Date posted,Date of transaction,Merchant Name,Merchant City,Originating Account Name,Originating Account Number,MCC/SIC Code,MCC Description,Original Amount,Currency,Conversion Rate,Billed Amount,Debit Credit,Reference Number,Statement Cycle,Account Name
Gloucester City Council,23UE,MANAGING DIRECTOR,RE100,VOCATIONAL TRAINING,2970,2016-05-19,2016-05-18,WWW.SOLACE.ORG.UK,PONTEFRACT,REDACTED,471*********1967,8699,MEMBERSHIP ORGANIZATIONS NOT ELSEWHERE CLASSIFIED,-358.8,Pound Sterling (826),1,-358.8,Credit,74085326140465000114601,2016-06-02,GLOUCESTER CC
Gloucester City Council,23UE,TIC STAMP SALES,LT102,POSTAGES,5400,2016-05-10,2016-05-09,ROYAL MAIL,EDINBURGH,REDACTED,471*********4015,9402,POSTAGE STAMPS,716,Pound Sterling (826),1,716,Debit,74678586131070147066079,2016-06-02,GLOUCESTER CC
Gloucester City Council,23UE,TOURISM MARKETING,LT100,OTHER MINOR SUPPLIES SERVICES,5590,2016-06-02,2016-06-01,MERCHANT RENTALS LTD,HAYDOCK,REDACTED,471*********4015,7394,EQUIP RENTALS & LEASING SERVICES  TOOL RENTAL  FURNITURE RENTAL,23.7,Pound Sterling (826),1,23.7,Debit,74678586154030170480367,2016-06-02,GLOUCESTER CC
Gloucester City Council,23UE,REGISTRATION OF ELECTORS,RS400,FEES FOR SERVICES RECEIVED,5350,2016-05-09,2016-05-06,B AND Q 1179,GLOUCESTER,REDACTED,471*********1715,5211,LUMBER AND BUILDING MATERIALS STORES,29,Pound Sterling (826),1,29,Debit,74579156128004275483241,2016-06-02,GLOUCESTER CC
Gloucester City Council,23UE,HOMELESSNESS,CH120,BOARD AND LODGING,5515,2016-05-04,2016-05-03,THE ORCHARD HOTEL,GLOUCESTER,REDACTED,471*********1443,7011,LODGING  HOTELS  MOTELS  RESORTS,840,Pound Sterling (826),1,840,Debit,74579156125007760612375,2016-06-02,GLOUCESTER CC
Gloucester City Council,23UE,HOMELESSNESS,CH120,BOARD AND LODGING,5515,2016-05-04,2016-05-03,TRAVELODGE WEBSITE,RESERVATION,REDACTED,471*********1443,3615,TRAVELODGE,336,Pound Sterling (826),1,336,Debit,74424716124298165880142,2016-06-02,GLOUCESTER CC
Gloucester City Council,23UE,HOMELESSNESS,CH120,BOARD AND LODGING,5515,2016-05-11,2016-05-10,TRAVELODGE WEBSITE,RESERVATION,REDACTED,471*********1443,3615,TRAVELODGE,335,Pound Sterling (826),1,335,Debit,74424716131298150789713,2016-06-02,GLOUCESTER CC
Gloucester City Council,23UE,MEMBERS SUPPORT,RC300,HOSPITALITY,5122,2016-05-10,2016-05-09,SAINSBURYS SUPERMA,GLOUCESTER QU,REDACTED,471*********8223,5411,GROCERY STORES  SUPERMARKETS,75,Pound Sterling (826),1,75,Debit,74579156131006475399643,2016-06-02,GLOUCESTER CC
Gloucester City Council,23UE,DOCKS COMPLEX - SERVICES,RB100,OPERATIONAL EQUIPMENT <5000,5012,2016-05-17,2016-05-16,B AND Q 1179,GLOUCESTER,REDACTED,471*********8223,5211,LUMBER AND BUILDING MATERIALS STORES,39.42,Pound Sterling (826),1,39.42,Debit,74579156138003677541745,2016-06-02,GLOUCESTER CC
Gloucester City Council,23UE,DOCKS COMPLEX - SERVICES,RB100,CATERING PROVISIONS -FOOD,5110,2016-05-20,2016-05-19,SAINSBURYS S/MKTS,GLOUCESTER 22,REDACTED,471*********8223,5411,GROCERY STORES  SUPERMARKETS,3,Pound Sterling (826),1,3,Debit,74579156141007475423928,2016-06-02,GLOUCESTER CC
Gloucester City Council,23UE,GRANTS TO VOLUNTARY SECTOR,FG100,GRANTS,7100C,2016-05-23,2016-05-20,KM REPROGRAPHICS,GLOUCESTER,REDACTED,471*********8476,2741,MISCELLANEOUS PUBLISHING & PRINTING,50,Pound Sterling (826),1,50,Debit,74056576141525000108731,2016-06-02,GLOUCESTER CC
Gloucester City Council,23UE,GRANTS TO VOLUNTARY SECTOR,FG100,ABCD GRANTS,7100A,2016-06-01,2016-05-31,Amazon UK Marketplace,800-279-6620,REDACTED,471*********8476,5942,BOOK STORES,49.57,Pound Sterling (826),1,49.57,Debit,74313226152000764364307,2016-06-02,GLOUCESTER CC
Gloucester City Council,23UE,FOLK MUSEUM,LM210,CATERING PROVISIONS -FOOD,5110,2016-05-12,2016-05-11,Amazon UK Marketplace,800-279-6620,REDACTED,471*********9991,5999,MISCELLANEOUS AND RETAIL STORES,9,Pound Sterling (826),1,9,Debit,74313226132000105904840,2016-06-02,GLOUCESTER CC
Gloucester City Council,23UE,FOLK MUSEUM,LM210,PUBLICATIONS FOR SALE,5064,2016-05-26,2016-05-25,HANCOCK CASH AND CARRY LT,LOUGHBOROUGH,REDACTED,471*********9523,5300,WHOLESALE CLUBS,242.43,Pound Sterling (826),1,242.43,Debit,74463656146891477253596,2016-06-02,GLOUCESTER CC
Gloucester City Council,23UE,CITY MUSEUM AND ART GALLERY,LM200,PUBLICATIONS FOR SALE,5064,2016-06-01,2016-05-31,VISTAPR*VistaPrint.uk,080-0028825,REDACTED,471*********9523,2741,MISCELLANEOUS PUBLISHING & PRINTING,164.32,Pound Sterling (826),1,164.32,Debit,74313226152000714261256,2016-06-02,GLOUCESTER CC
Gloucester City Council,23UE,FOLK MUSEUM,LM210,PUBLICATIONS FOR SALE,5064,2016-06-01,2016-05-31,VISTAPR*VistaPrint.uk,080-0028825,REDACTED,471*********9523,2741,MISCELLANEOUS PUBLISHING & PRINTING,164.32,Pound Sterling (826),1,164.32,Debit,74313226152000714261256,2016-06-02,GLOUCESTER CC
Gloucester City Council,23UE,CITY MUSEUM AND ART GALLERY,LM200,PUBLICATIONS FOR SALE,5064,2016-06-01,2016-05-31,PAYPAL *BLANKPRODUC,35314369001,REDACTED,471*********9523,5999,MISCELLANEOUS AND RETAIL STORES,15.44,Pound Sterling (826),1,15.44,Debit,74998866152621549625855,2016-06-02,GLOUCESTER CC
Gloucester City Council,23UE,FOLK MUSEUM,LM210,PUBLICATIONS FOR SALE,5064,2016-06-01,2016-05-31,PAYPAL *BLANKPRODUC,35314369001,REDACTED,471*********9523,5999,MISCELLANEOUS AND RETAIL STORES,15.44,Pound Sterling (826),1,15.44,Debit,74998866152621549625855,2016-06-02,GLOUCESTER CC
Gloucester City Council,23UE,CITY MUSEUM AND ART GALLERY,LM200,ADVERTISING AND PUBLICITY,5702,2016-06-01,2016-05-31,FACEBOOK M2H7G9AKW2,www.fb.me/ads,REDACTED,471*********9523,7311,ADVERTISING SERVICES,50.87,Pound Sterling (826),1,50.87,Debit,74987506152661071291549,2016-06-02,GLOUCESTER CC
Gloucester City Council,23UE,CITY MUSEUM CATERING,LM202,CATERING PROVISIONS -FOOD,5110,2016-06-02,2016-06-01,BOOKER LIMITED GLOUCESTER,GLOUCESTER,REDACTED,471*********9523,5811,CATERERS,173.19,Pound Sterling (826),1,173.19,Debit,74463666153921536185981,2016-06-02,GLOUCESTER CC
Gloucester City Council,23UE,FOLK MUSEUM,LM210,CATERING PROVISIONS -FOOD,5110,2016-06-02,2016-06-01,BOOKER LIMITED GLOUCESTER,GLOUCESTER,REDACTED,471*********9523,5811,CATERERS,10.98,Pound Sterling (826),1,10.98,Debit,74463666153921536185981,2016-06-02,GLOUCESTER CC
Gloucester City Council,23UE,GUILDHALL BAR AND CAF�,LA210,CATERING PROVISIONS -LIQUOR,5111,2016-05-04,2016-05-03,ASDA SUPERSTORE,GLOUCESTER,REDACTED,471*********2470,5411,GROCERY STORES  SUPERMARKETS,25.48,Pound Sterling (826),1,25.48,Debit,74698176125030223513869,2016-06-02,GLOUCESTER CC
Gloucester City Council,23UE,GUILDHALL BAR AND CAF�,LA210,CATERING PROVISIONS -FOOD,5110,2016-05-05,2016-05-04,HOLLAND & BARRETT,GLOUCESTER,REDACTED,471*********2470,5999,MISCELLANEOUS AND RETAIL STORES,35.96,Pound Sterling (826),1,35.96,Debit,74579156126007479145807,2016-06-02,GLOUCESTER CC
Gloucester City Council,23UE,GUILDHALL BAR AND CAF�,LA210,CATERING PROVISIONS -FOOD,5110,2016-05-25,2016-05-24,ICELAND,GLOUCESTER,REDACTED,471*********2470,5411,GROCERY STORES  SUPERMARKETS,13,Pound Sterling (826),1,13,Debit,74698166146080128364427,2016-06-02,GLOUCESTER CC
Gloucester City Council,23UE,GUILDHALL BAR AND CAF�,LA210,CATERING PROVISIONS -FOOD,5110,2016-05-25,2016-05-24,ALDI,GLOUCESTER,REDACTED,471*********2470,5411,GROCERY STORES  SUPERMARKETS,27.59,Pound Sterling (826),1,27.59,Debit,74019476146495000817265,2016-06-02,GLOUCESTER CC
Gloucester City Council,23UE,GUILDHALL BAR AND CAF�,LA210,CATERING PROVISIONS -LIQUOR,5111,2016-05-26,2016-05-25,ASDA SUPERSTORE,GLOUCESTER,REDACTED,471*********2470,5411,GROCERY STORES  SUPERMARKETS,54.34,Pound Sterling (826),1,54.34,Debit,74698176147090210423328,2016-06-02,GLOUCESTER CC
Gloucester City Council,23UE,GUILDHALL BAR AND CAF�,LA210,CATERING PROVISIONS -FOOD,5110,2016-05-26,2016-05-25,SAINSBURYS S/MKTS,GLOUCESTER 22,REDACTED,471*********2470,5411,GROCERY STORES  SUPERMARKETS,11.7,Pound Sterling (826),1,11.7,Debit,74579156147008175850901,2016-06-02,GLOUCESTER CC
Gloucester City Council,23UE,GUILDHALL BAR AND CAF�,LA210,CATERING PROVISIONS -FOOD,5110,2016-05-30,2016-05-27,SAINSBURYS S/MKTS,GLOUCESTER 22,REDACTED,471*********2470,5411,GROCERY STORES  SUPERMARKETS,23.49,Pound Sterling (826),1,23.49,Debit,74579156149004579366261,2016-06-02,GLOUCESTER CC
Gloucester City Council,23UE,GUILDHALL BAR AND CAF�,LA210,CATERING PROVISIONS -FOOD,5110,2016-05-30,2016-05-28,TESCO STORES 6792,GLOUCESTER,REDACTED,471*********2470,5411,GROCERY STORES  SUPERMARKETS,6.95,Pound Sterling (826),1,6.95,Debit,74698086150010758862500,2016-06-02,GLOUCESTER CC
Gloucester City Council,23UE,POLLUTION CONTROL,HE300,PUBLIC TRANSPORTATION,4061,2016-05-04,2016-05-03,TRAINLINE,RAIL TICKETS,REDACTED,471*********4841,4112,PASSENGER RAILWAYS,73.54,Pound Sterling (826),1,73.54,Debit,74998866124617640833443,2016-06-02,GLOUCESTER CC
Gloucester City Council,23UE,TOURISM MARKETING,LT100,PUBLIC TRANSPORTATION,4061,2016-05-04,2016-05-03,TRAINLINE,RAIL TICKETS,REDACTED,471*********4841,4112,PASSENGER RAILWAYS,55.08,Pound Sterling (826),1,55.08,Debit,74998866124617640834888,2016-06-02,GLOUCESTER CC
Gloucester City Council,23UE,CIVIC ADMIN AND HOSPITALITY,RC210,VEHICLE LICENCES,4015,2016-05-05,2016-05-04,DVLA VEHICLE TAX,0300 1234321,REDACTED,471*********4841,9399,GOVERNMENT SERVICES NOT ELSEWHERE CLASSIFIED,118,Pound Sterling (826),1,118,Debit,74579156126007974453169,2016-06-02,GLOUCESTER CC
Gloucester City Council,23UE,TOURISM MARKETING,LT100,PUBLIC TRANSPORTATION,4061,2016-05-05,2016-05-04,TRAINLINE,RAIL TICKETS,REDACTED,471*********4841,4112,PASSENGER RAILWAYS,55.08,Pound Sterling (826),1,55.08,Debit,74998866125617678207154,2016-06-02,GLOUCESTER CC
Gloucester City Council,23UE,COUNCIL STREETCARE TEAM,HI101,VOCATIONAL TRAINING,2970,2016-05-05,2016-05-04,TRAINLINE,RAIL TICKETS,REDACTED,471*********4841,4112,PASSENGER RAILWAYS,40.7,Pound Sterling (826),1,40.7,Debit,74998866125617678210208,2016-06-02,GLOUCESTER CC
Gloucester City Council,23UE,POLLUTION CONTROL,HE300,PUBLIC TRANSPORTATION,4061,2016-05-11,2016-05-10,TRAINLINE,RAIL TICKETS,REDACTED,471*********4841,4112,PASSENGER RAILWAYS,73.54,Pound Sterling (826),1,73.54,Debit,74998866131618871050757,2016-06-02,GLOUCESTER CC
Gloucester City Council,23UE,GROUP MGR CULT SER & TOURISM,GR102,PUBLIC TRANSPORTATION,4061,2016-05-12,2016-05-11,TRAINLINE,RAIL TICKETS,REDACTED,471*********4841,4112,PASSENGER RAILWAYS,114.75,Pound Sterling (826),1,114.75,Debit,74998866132618906433217,2016-06-02,GLOUCESTER CC
Gloucester City Council,23UE,MEMBERS SUPPORT,RC300,PUBLIC TRANSPORTATION,4061,2016-05-12,2016-05-11,TRAINLINE,RAIL TICKETS,REDACTED,471*********4841,4112,PASSENGER RAILWAYS,86.5,Pound Sterling (826),1,86.5,Debit,74998866132618906434074,2016-06-02,GLOUCESTER CC
Gloucester City Council,23UE,MEMBERS SUPPORT,RC300,PUBLIC TRANSPORTATION,4061,2016-05-13,2016-05-12,TRAINLINE,RAIL TICKETS,REDACTED,471*********4841,4112,PASSENGER RAILWAYS,86.5,Pound Sterling (826),1,86.5,Debit,74998866133618940084702,2016-06-02,GLOUCESTER CC
Gloucester City Council,23UE,NMS CONTRACT,HI102,PUBLIC TRANSPORTATION,4061,2016-05-13,2016-05-12,TRAINLINE,RAIL TICKETS,REDACTED,471*********4841,4112,PASSENGER RAILWAYS,180.74,Pound Sterling (826),1,180.74,Debit,74998866133618940088240,2016-06-02,GLOUCESTER CC
Gloucester City Council,23UE,NMS CONTRACT,HI102,PUBLIC TRANSPORTATION,4061,2016-05-13,2016-05-12,TRAINLINE,RAIL TICKETS,REDACTED,471*********4841,4112,PASSENGER RAILWAYS,-175.7,Pound Sterling (826),1,-175.7,Credit,74998866133618940090667,2016-06-02,GLOUCESTER CC
Gloucester City Council,23UE,HEAD OF REGENERATION & ECO DEV,GO102,PUBLIC TRANSPORTATION,4061,2016-05-16,2016-05-13,TRAINLINE,RAIL TICKETS,REDACTED,471*********4841,4112,PASSENGER RAILWAYS,153.1,Pound Sterling (826),1,153.1,Debit,74998866134619973484891,2016-06-02,GLOUCESTER CC
Gloucester City Council,23UE,NMS CONTRACT,HI102,PUBLIC TRANSPORTATION,4061,2016-05-16,2016-05-13,TRAINLINE,RAIL TICKETS,REDACTED,471*********4841,4112,PASSENGER RAILWAYS,208.59,Pound Sterling (826),1,208.59,Debit,74998866134619973482713,2016-06-02,GLOUCESTER CC
Gloucester City Council,23UE,HISTORIC BUILDINGS,PH100,PUBLIC TRANSPORTATION,4061,2016-05-18,2016-05-17,TRAINLINE,RAIL TICKETS,REDACTED,471*********4841,4112,PASSENGER RAILWAYS,10.35,Pound Sterling (826),1,10.35,Debit,74998866138619101628662,2016-06-02,GLOUCESTER CC
Gloucester City Council,23UE,DEVELOPMENT MANAGEMENT,PT200,PUBLIC TRANSPORTATION,4061,2016-05-24,2016-05-23,TRAINLINE,RAIL TICKETS,REDACTED,471*********4841,4112,PASSENGER RAILWAYS,166.77,Pound Sterling (826),1,166.77,Debit,74998866144620293671314,2016-06-02,GLOUCESTER CC
Gloucester City Council,23UE,CONTACT CENTRE,RB300,MISCELLANEOUS EXPENSES,2952,2016-05-27,2016-05-26,GLO'SHIRE CC WEB PCN,UXBRIDGE,REDACTED,471*********4841,7523,AUTOMOBILE PARKING LOTS AND GARAGES,25,Pound Sterling (826),1,25,Debit,74698166148000094040106,2016-06-02,GLOUCESTER CC
Gloucester City Council,23UE,CREMATORIUM,HC200,MAINT OF GROUNDS - GENERAL,3030,2016-05-27,2016-05-26,SCREWFIX DIRECT,YEOVIL,REDACTED,471*********4841,5211,LUMBER AND BUILDING MATERIALS STORES,197.13,Pound Sterling (826),1,197.13,Debit,74579156148002578698750,2016-06-02,GLOUCESTER CC
Gloucester City Council,23UE,MEMBERS SUPPORT,RC300,PUBLIC TRANSPORTATION,4061,2016-06-01,2016-05-31,TRAINLINE,RAIL TICKETS,REDACTED,471*********4841,4112,PASSENGER RAILWAYS,136.17,Pound Sterling (826),1,136.17,Debit,74998866152621563427345,2016-06-02,GLOUCESTER CC
Gloucester City Council,23UE,MEMBERS SUPPORT,RC300,PUBLIC TRANSPORTATION,4061,2016-06-01,2016-05-31,TRAINLINE,RAIL TICKETS,REDACTED,471*********4841,4112,PASSENGER RAILWAYS,132.09,Pound Sterling (826),1,132.09,Debit,74998866152621563429887,2016-06-02,GLOUCESTER CC
Gloucester City Council,23UE,GUILDHALL CINEMA,LA202,ADVERTISING AND PUBLICITY,5702,2016-05-04,2016-05-03,WWW.INSTANTPRINT.C,01709 382202,REDACTED,471*********6962,7338,QUICK-COPY AND REPRODUCTION SERVICES,73.99,Pound Sterling (826),1,73.99,Debit,74579156125003975961996,2016-06-02,GLOUCESTER CC
Gloucester City Council,23UE,GUILDHALL EVENTS,LA200,FEES FOR SERVICES RECEIVED,5350,2016-05-06,2016-05-05,MIPERMIT PARKING-DOM,INTERNET,REDACTED,471*********6962,7523,AUTOMOBILE PARKING LOTS AND GARAGES,20,Pound Sterling (826),1,20,Debit,74745106127050087354505,2016-06-02,GLOUCESTER CC
Gloucester City Council,23UE,GUILDHALL EVENTS,LA200,FEES FOR SERVICES RECEIVED,5350,2016-05-06,2016-05-05,MIPERMIT PARKING-DOM,INTERNET,REDACTED,471*********6962,7523,AUTOMOBILE PARKING LOTS AND GARAGES,10,Pound Sterling (826),1,10,Debit,74745106127050087354489,2016-06-02,GLOUCESTER CC
Gloucester City Council,23UE,GUILDHALL EVENTS,LA200,FEES FOR SERVICES RECEIVED,5350,2016-05-11,2016-05-10,MIPERMIT PARKING-DOM,INTERNET,REDACTED,471*********6962,7523,AUTOMOBILE PARKING LOTS AND GARAGES,10,Pound Sterling (826),1,10,Debit,74745106132080080666343,2016-06-02,GLOUCESTER CC
Gloucester City Council,23UE,GUILDHALL EVENTS,LA200,FEES FOR SERVICES RECEIVED,5350,2016-05-16,2016-05-13,MIPERMIT PARKING-DOM,INTERNET,REDACTED,471*********6962,7523,AUTOMOBILE PARKING LOTS AND GARAGES,10,Pound Sterling (826),1,10,Debit,74745106135010092644795,2016-06-02,GLOUCESTER CC
Gloucester City Council,23UE,GUILDHALL EVENTS,LA200,FEES FOR SERVICES RECEIVED,5350,2016-05-17,2016-05-16,MIPERMIT PARKING-DOM,INTERNET,REDACTED,471*********6962,7523,AUTOMOBILE PARKING LOTS AND GARAGES,20,Pound Sterling (826),1,20,Debit,74745106138020087003920,2016-06-02,GLOUCESTER CC
Gloucester City Council,23UE,GLOUCESTER GUILDHALL,LA100,FEES FOR SERVICES RECEIVED,5350,2016-05-19,2016-05-18,ARGOS RETAIL GROUP,INTERNET,REDACTED,471*********6962,5310,DISCOUNT STORES,119.96,Pound Sterling (826),1,119.96,Debit,74579156140004972673155,2016-06-02,GLOUCESTER CC
Gloucester City Council,23UE,BLACKFRIARS,LA609,FEES FOR SERVICES RECEIVED,5350,2016-05-23,2016-05-20,WICKES BUILDING,WATFORD,REDACTED,471*********6962,5211,LUMBER AND BUILDING MATERIALS STORES,97.45,Pound Sterling (826),1,97.45,Debit,74579156142002473913714,2016-06-02,GLOUCESTER CC
Gloucester City Council,23UE,GUILDHALL EVENTS,LA200,CATERING PROVISIONS -FOOD,5510,2016-05-23,2016-05-21,RUSSELL GUEST HOUSE,BRIGHTON,REDACTED,471*********6962,7011,LODGING  HOTELS  MOTELS  RESORTS,170,Pound Sterling (826),1,170,Debit,74916776143060403610186,2016-06-02,GLOUCESTER CC
Gloucester City Council,23UE,GUILDHALL EVENTS,LA200,CATERING PROVISIONS -FOOD,5510,2016-05-24,2016-05-21,REGENCY SQUARE CAR,BRIGHTON,REDACTED,471*********6962,7523,AUTOMOBILE PARKING LOTS AND GARAGES,32,Pound Sterling (826),1,32,Debit,74830506144292209235230,2016-06-02,GLOUCESTER CC
Gloucester City Council,23UE,BLACKFRIARS,LA609,GENERAL REPAIR/MAINT BUILDINGS,3000,2016-05-24,2016-05-23,Figest,Hoofddorp,REDACTED,471*********6962,5714,WINDOW COVERING  UPHOLSTERY AND DRAPERY STORES,52.26,Pound Sterling (826),1,52.26,Debit,74987506144531560801234,2016-06-02,GLOUCESTER CC
Gloucester City Council,23UE,BLACKFRIARS,LA609,FEES FOR SERVICES RECEIVED,5350,2016-05-25,2016-05-24,LIGHTS4FUN.CO.UK,HARROGATE,REDACTED,471*********6962,5065,ELECTRICAL PARTS AND EQUIPMENT,323.62,Pound Sterling (826),1,323.62,Debit,74056576146003000095014,2016-06-02,GLOUCESTER CC
Gloucester City Council,23UE,GLOUCESTER GUILDHALL,LA100,VOCATIONAL TRAINING,2970,2016-05-26,2016-05-25,WP-ARTS MARKETING,CAMBRIDGE,REDACTED,471*********6962,8999,PROFESSIONAL SERVICES NOT ELSEWHERE CLASSIFIED,90,Pound Sterling (826),1,90,Debit,74745106147090020766957,2016-06-02,GLOUCESTER CC
Gloucester City Council,23UE,GUILDHALL EVENTS,LA200,FEES FOR SERVICES RECEIVED,5350,2016-05-30,2016-05-27,MIPERMIT PARKING-DOM,INTERNET,REDACTED,471*********6962,7523,AUTOMOBILE PARKING LOTS AND GARAGES,20,Pound Sterling (826),1,20,Debit,74745106149010109375395,2016-06-02,GLOUCESTER CC
Gloucester City Council,23UE,GUILDHALL EVENTS,LA200,FEES FOR SERVICES RECEIVED,5350,2016-05-30,2016-05-27,MIPERMIT PARKING-DOM,INTERNET,REDACTED,471*********6962,7523,AUTOMOBILE PARKING LOTS AND GARAGES,20,Pound Sterling (826),1,20,Debit,74745106149010109375940,2016-06-02,GLOUCESTER CC
Gloucester City Council,23UE,GUILDHALL EVENTS,LA200,ADVERTISING AND PUBLICITY,5702,2016-06-01,2016-05-31,FACEBOOK VMKFA92E72,www.fb.me/ads,REDACTED,471*********6962,7311,ADVERTISING SERVICES,18.73,Pound Sterling (826),1,18.73,Debit,74987506152416741911236,2016-06-02,GLOUCESTER CC
Gloucester City Council,23UE,CLIENT REVS & BENS CONTRACT,RT240,COURT FEES,5358,2016-05-10,2016-05-09,HMCOURTS-SERVICE.G,1452420100,REDACTED,471*********5409,9222,FINES,1023,Pound Sterling (826),1,1023,Debit,74579156131001777352135,2016-06-02,GLOUCESTER CC
Gloucester City Council,23UE,HMO LICENCES,HE520,VOCATIONAL TRAINING,2970,2016-05-17,2016-05-13,CIEH,LNDON SE1 001,REDACTED,471*********5409,8699,MEMBERSHIP ORGANIZATIONS NOT ELSEWHERE CLASSIFIED,279,Pound Sterling (826),1,279,Debit,74830506136039320803259,2016-06-02,GLOUCESTER CC
Gloucester City Council,23UE,CORPORATE REPORTING /FINANCING,RC504,SUBSCRIPTIONS,5600,2016-05-24,2016-05-23,WWW.ICO.GOV.UK,03031231113 W,REDACTED,471*********5409,9399,GOVERNMENT SERVICES NOT ELSEWHERE CLASSIFIED,500,Pound Sterling (826),1,500,Debit,74579156145000979086990,2016-06-02,GLOUCESTER CC
Gloucester City Council,23UE,FINANCIAL SERVICES,RT200,PUBLIC TRANSPORTATION,4061,2016-05-25,2016-05-24,VIRGINTRAINS.CO.UK,03445 561 396,REDACTED,471*********5409,4112,PASSENGER RAILWAYS,120.85,Pound Sterling (826),1,120.85,Debit,74998866145620331090344,2016-06-02,GLOUCESTER CC
Gloucester City Council,23UE,INHOUSE TRAINING,EH200,VOCATIONAL TRAINING,2970,2016-05-26,2016-05-25,WWW.CIPS.ORG,0845 8801188,REDACTED,471*********5409,8699,MEMBERSHIP ORGANIZATIONS NOT ELSEWHERE CLASSIFIED,118.32,Pound Sterling (826),1,118.32,Debit,74579156147001177493838,2016-06-02,GLOUCESTER CC
Gloucester City Council,23UE,BUSINESS TRANSFORMATION & TECH,RT700,COMPUTER CONSUMABLES,5422,2016-05-30,2016-05-27,WWW.MOBILEFUN.CO.U,MOBILEFUN.CO.,REDACTED,471*********5409,4812,TELECOMMUNICATION EQUIPMENT INCLUDING TELEPHONE SALES,11.98,Pound Sterling (826),1,11.98,Debit,74579156149007678595391,2016-06-02,GLOUCESTER CC
Gloucester City Council,23UE,BUSINESS TRANSFORMATION & TECH,RT700,COMPUTER HARDWARE <5000,5420,2016-05-30,2016-05-28,APPLE ONLINE STORE GBP,0845-600-1683,REDACTED,471*********5409,5732,ELECTRONIC SALES,349,Pound Sterling (826),1,349,Debit,74313226149000328251202,2016-06-02,GLOUCESTER CC
